bitfinex/quotes_SOLUSD_20230120
["timestamp","ask_amount","ask_price","bid_price","bid_amount"]
[1674172802950,10.0,21.412,21.397,18.92]
[1674172803685,10.0,21.412,21.398,18.30324719]
[1674172803898,10.0,21.412,21.399,18.92]
[1674172804307,10.0,21.412,21.4,18.30324719]
[1674172804527,10.0,21.412,21.401,18.92]
[1674172805465,10.0,21.414,21.401,18.92]
[1674172806624,10.0,21.414,21.401,37.22324719]
[1674172807051,10.0,21.414,21.401,18.30324719]
[1674172807264,10.0,21.414,21.397,3.77]
[1674172807573,10.0,21.414,21.398,18.30324719]
[1674172808412,10.0,21.412,21.398,18.30324719]
[1674172809259,10.0,21.412,21.393,2.971]
[1674172809471,35.03,21.411,21.393,18.30324719]
[1674172809660,35.03,21.411,21.389,1.52]
[1674172809872,10.0,21.41,21.389,21.52]
[1674172810411,35.04,21.409,21.389,1.52]
[1674172810625,20.0,21.408,21.386,3.154]
[1674172810835,10.96,21.407,21.385,12.067]
[1674172811029,46.0,21.407,21.385,12.067]
[1674172811239,45.04,21.407,21.385,12.067]
[1674172811465,109.8435,21.406,21.385,12.067]
[1674172811694,109.8435,21.406,21.385,30.37024719]
[1674172811875,10.0,21.404,21.386,0.96]
[1674172812197,10.0,21.404,21.387,0.96]
[1674172812401,10.0,21.404,21.387,4.751]
[1674172812599,10.0,21.404,21.386,6.742]
[1674172814080,10.0,21.404,21.387,18.92]
[1674172816103,10.0,21.404,21.388,18.30324719]
[1674172816315,10.0,21.404,21.389,18.92]
[1674172816718,144.8835,21.406,21.389,37.22324719]
[1674172816934,109.8435,21.406,21.39,10.0]
[1674172817151,109.8435,21.406,21.391,18.92]
[1674172817363,109.8435,21.406,21.391,37.22324719]
[1674172817578,109.8435,21.406,21.392,18.30324719]
[1674172817799,10.0,21.405,21.393,0.96]
[1674172817993,10.0,21.405,21.391,18.30324719]
[1674172818204,10.0,21.405,21.387,10.0]
[1674172818421,10.0,21.403,21.388,18.30324719]
[1674172819035,10.0,21.403,21.384,126.05]
[1674172819247,35.05,21.402,21.384,144.35324719]
[1674172819580,10.0,21.401,21.385,28.30324719]
[1674172820189,55.05,21.4,21.378,8.798]
[1674172820400,10.0,21.399,21.376,18.30324719]
[1674172820636,20.0,21.398,21.376,18.30324719]
[1674172820823,10.0,21.397,21.376,18.30324719]
[1674172821241,35.06,21.396,21.376,18.30324719]
[1674172821478,35.06,21.396,21.377,10.0]
[1674172821691,112.1358,21.395,21.377,10.0]
[1674172821878,10.0,21.394,21.375,10.0]
[1674172822089,10.0,21.394,21.377,18.30324719]
[1674172822090,45.06,21.394,21.377,18.30324719]
[1674172824009,45.06,21.394,21.378,10.96]
[1674172824187,45.06,21.394,21.379,0.96]
[1674172824394,45.06,21.394,21.379,19.26324719]
[1674172825452,45.06,21.394,21.379,0.96]
[1674172825653,45.06,21.394,21.38,0.96]
[1674172825886,45.06,21.394,21.378,18.30324719]
[1674172826201,106.27775215,21.394,21.378,18.30324719]
[1674172826409,106.27775215,21.394,21.372,10.36]
[1674172826631,1.92,21.393,21.368,10.49]
[1674172826810,10.0,21.392,21.367,20.49]
[1674172827016,20.0,21.391,21.367,20.49]
[1674172827231,10.0,21.389,21.367,10.0]
[1674172827652,55.07,21.388,21.367,10.0]
[1674172827889,10.0,21.387,21.367,10.0]
[1674172828309,35.07,21.386,21.367,10.0]
[1674172828729,10.0,21.385,21.368,18.30324719]
[1674172829044,35.06,21.391,21.368,28.45324719]
[1674172829277,35.06,21.392,21.368,28.45324719]
[1674172829586,35.06,21.393,21.37,10.0]
[1674172830002,10.0,21.392,21.372,10.0]
[1674172830316,10.0,21.392,21.373,37.22324719]
[1674172830529,35.07,21.389,21.373,18.30324719]
[1674172830724,10.0,21.388,21.374,18.30324719]
[1674172831055,10.0,21.388,21.367,10.0]
[1674172831263,55.07,21.387,21.367,10.0]
[1674172831583,10.0,21.386,21.367,10.0]
[1674172832004,10.0,21.384,21.364,15.86]
[1674172832211,10.0,21.384,21.359,18.1334985]
[1674172832212,127.4654,21.384,21.361,15.36]
[1674172832403,80.75576951,21.383,21.359,8.1334985]
[1674172832607,17.0,21.382,21.359,8.1334985]
[1674172832838,36.33224,21.381,21.359,8.1334985]
[1674172833040,21.41224,21.38,21.359,8.1334985]
[1674172833243,10.0,21.378,21.359,8.1334985]
[1674172833465,119.497,21.377,21.359,8.1334985]
[1674172833665,10.0,21.376,21.359,8.1334985]
[1674172833880,1.92,21.375,21.359,8.1334985]
[1674172834096,37.01,21.375,21.359,8.1334985]
[1674172834714,20.0,21.374,21.347,13.71]
[1674172834927,23.33224,21.373,21.348,10.0]
[1674172835140,24.41224,21.372,21.348,10.0]
[1674172835357,1.92,21.371,21.349,18.30324719]
[1674172835581,10.0,21.37,21.349,18.30324719]
[1674172835889,20.0,21.369,21.349,18.30324719]
[1674172836205,10.0,21.368,21.349,18.30324719]
[1674172836418,20.0,21.367,21.349,18.30324719]
[1674172836644,10.0,21.366,21.349,18.30324719]
[1674172838198,10.0,21.364,21.349,18.30324719]
[1674172839040,10.0,21.364,21.35,17.0]
[1674172839247,35.11,21.365,21.35,17.0]
[1674172839570,35.11,21.365,21.351,19.26324719]
[1674172839761,35.11,21.366,21.352,17.0]
[1674172839971,35.11,21.366,21.353,0.96]
[1674172840196,35.11,21.366,21.353,20.22324719]
[1674172840513,10.0,21.365,21.354,17.0]
[1674172840725,10.0,21.365,21.355,1.92]
[1674172842806,35.1,21.371,21.355,1.92]
[1674172843020,225.3225,21.373,21.356,18.30324719]
[1674172843233,108.3508,21.373,21.357,18.92]
[1674172843453,35.09,21.377,21.358,10.0]
[1674172843772,10.0,21.381,21.359,17.96]
[1674172843773,108.3508,21.38,21.359,17.96]
[1674172843962,108.3508,21.38,21.36,0.96]
[1674172844173,108.3508,21.38,21.361,0.96]
[1674172844378,35.08,21.383,21.361,19.26324719]
[1674172844604,117.4654,21.384,21.363,10.0]
[1674172844825,117.4654,21.384,21.364,18.92]
[1674172845036,117.4654,21.384,21.364,57.54324719]
[1674172845220,117.4654,21.384,21.365,28.30324719]
[1674172845434,117.4654,21.384,21.366,18.92]
[1674172845665,117.4654,21.384,21.367,10.0]
[1674172845877,117.4654,21.384,21.368,18.92]
[1674172846068,117.4654,21.384,21.368,37.22324719]
[1674172846279,117.4654,21.384,21.369,28.30324719]
[1674172846529,117.4654,21.384,21.371,10.0]
[1674172846701,117.4654,21.384,21.372,18.92]
[1674172847533,10.0,21.383,21.372,18.92]
[1674172847745,10.0,21.383,21.372,1.92]
[1674172848192,10.0,21.383,21.37,18.30324719]
[1674172849008,10.0,21.383,21.362,25.97]
[1674172849219,35.08,21.382,21.362,25.97]
[1674172849435,35.08,21.382,21.364,25.12]
[1674172849656,45.08,21.383,21.368,18.30324719]
[1674172850512,45.08,21.383,21.37,10.0]
[1674172850724,35.08,21.383,21.371,18.92]
[1674172851041,35.08,21.383,21.372,10.0]
[1674172851249,236.9553,21.384,21.373,18.92]
[1674172851864,236.9553,21.384,21.373,17.0]
[1674172852073,35.07,21.388,21.374,0.96]
[1674172852295,95.77116999,21.417,21.375,0.96]
[1674172852296,147.3098,21.392,21.375,0.96]
[1674172852500,112.2498,21.392,21.376,10.96]
[1674172852828,112.2498,21.392,21.377,17.96]
[1674172853014,112.2498,21.392,21.378,10.96]
[1674172853227,112.2498,21.392,21.379,17.96]
[1674172853454,112.2498,21.392,21.38,10.96]
[1674172853674,112.2498,21.392,21.381,17.96]
[1674172854930,112.2498,21.392,21.382,10.96]
[1674172855128,112.2498,21.392,21.383,17.96]
[1674172855541,112.2498,21.392,21.384,0.96]
[1674172857224,112.2498,21.392,21.383,17.96]
[1674172857432,112.2498,21.392,21.383,0.96]
[1674172857659,112.2498,21.392,21.378,28.30324719]
[1674172857855,10.0,21.391,21.378,18.30324719]
[1674172858060,45.06,21.391,21.371,33.96]
[1674172858796,45.06,21.391,21.373,18.30324719]
[1674172859021,45.06,21.391,21.374,10.0]
[1674172859433,45.06,21.391,21.375,18.30324719]
[1674172859858,45.06,21.391,21.366,10.0]
[1674172860064,10.0,21.389,21.366,10.0]
[1674172860384,10.0,21.387,21.366,28.30324719]
[1674172860903,10.0,21.387,21.364,10.0]
[1674172860904,35.07,21.386,21.36,10.0]
[1674172861127,35.07,21.386,21.354,35.13]
[1674172861128,4.41224,21.385,21.354,35.13]
[1674172861322,0.96,21.384,21.354,35.13]
[1674172861656,10.96,21.383,21.352,43.23]
[1674172861869,20.96,21.382,21.352,43.23]
[1674172862057,0.96,21.381,21.352,43.23]
[1674172862271,0.96,21.38,21.352,43.23]
[1674172862493,10.96,21.379,21.352,33.23]
[1674172862700,37.96,21.378,21.352,33.23]
[1674172862905,0.96,21.377,21.352,33.23]
[1674172863113,0.96,21.376,21.35,18.30324719]
[1674172863324,10.0,21.374,21.35,18.30324719]
[1674172863547,118.2222,21.373,21.351,22.69]
[1674172863847,0.96,21.372,21.346,20.46]
[1674172864057,10.96,21.371,21.346,38.76324719]
[1674172864257,46.06,21.371,21.346,18.30324719]
[1674172864470,46.06,21.371,21.347,20.87]
[1674172864900,46.06,21.371,21.347,39.17324719]
[1674172865105,46.06,21.371,21.347,18.30324719]
[1674172865439,45.1,21.371,21.348,40.22]
[1674172866061,45.1,21.371,21.349,18.92]
[1674172866297,45.1,21.371,21.35,20.0]
[1674172866600,45.1,21.371,21.351,18.92]
[1674172866797,45.1,21.371,21.352,20.0]
[1674172867004,45.1,21.371,21.309,591.2]
[1674172867005,22.37224,21.37,21.343,22.12]
[1674172867217,20.96,21.369,21.343,22.12]
[1674172867429,10.96,21.368,21.343,22.12]
[1674172867641,10.0,21.366,21.343,22.12]
[1674172867851,1.92,21.365,21.342,18.30324719]
[1674172868064,1.92,21.365,21.331,10.0]
[1674172868065,167.5342,21.365,21.332,21.38]
[1674172868265,10.0,21.364,21.333,10.0]
[1674172868591,1.92,21.363,21.338,18.30324719]
[1674172868911,37.03,21.363,21.334,38.14324719]
[1674172869314,10.0,21.362,21.335,28.30324719]
[1674172869521,0.96,21.361,21.335,28.30324719]
[1674172869863,36.07,21.361,21.336,37.28324719]
[1674172870047,37.96,21.36,21.335,18.98]
[1674172870381,10.0,21.359,21.334,18.30324719]
[1674172870566,10.0,21.357,21.334,18.30324719]
[1674172870782,1.92,21.356,21.334,18.30324719]
[1674172871012,37.04,21.356,21.334,18.30324719]
[1674172871199,10.0,21.355,21.334,18.30324719]
[1674172871415,1.92,21.354,21.33,16.26]
[1674172871618,37.05,21.354,21.331,18.30324719]
[1674172872044,27.0,21.353,21.326,13.9]
[1674172872254,1.92,21.352,21.327,18.30324719]
[1674172872476,37.05,21.352,21.327,18.30324719]
[1674172872680,37.05,21.352,21.328,33.99]
[1674172872891,10.0,21.351,21.328,33.99]
[1674172873109,1.92,21.35,21.328,33.99]
[1674172873309,35.13,21.35,21.328,33.99]
[1674172873522,10.0,21.348,21.328,33.99]
[1674172873955,45.14,21.348,21.328,33.99]
[1674172874575,45.14,21.348,21.329,18.92]
[1674172874796,45.14,21.348,21.33,20.0]
[1674172875107,35.14,21.348,21.331,18.92]
[1674172875322,35.13,21.35,21.331,18.92]
[1674172875541,10.0,21.349,21.331,18.92]
[1674172876063,10.0,21.349,21.327,13.07]
[1674172876256,10.0,21.349,21.321,10.0]
[1674172876257,10.0,21.347,21.325,13.45]
[1674172876800,35.14,21.346,21.325,31.75324719]
[1674172877110,35.14,21.346,21.325,13.45]
[1674172877326,10.0,21.345,21.325,13.45]
[1674172877516,122.1048,21.345,21.326,17.0]
[1674172877722,122.1048,21.345,21.325,13.45]
[1674172878066,10.0,21.343,21.321,12.01]
[1674172878245,22.37224,21.342,21.319,12.01]
[1674172878589,0.96,21.341,21.317,18.30324719]
[1674172878784,0.96,21.34,21.317,18.30324719]
[1674172879000,36.11,21.34,21.318,15.13]
[1674172879200,10.0,21.339,21.319,30.0]
[1674172879723,0.96,21.338,21.32,13.38]
[1674172880053,0.96,21.337,21.313,13.36]
[1674172880365,0.96,21.336,21.313,13.36]
[1674172880591,0.96,21.335,21.313,13.36]
[1674172880769,0.96,21.334,21.313,13.36]
[1674172880980,10.0,21.333,21.313,13.36]
[1674172881203,35.16,21.334,21.313,31.66324719]
[1674172881520,35.15,21.338,21.314,18.92]
[1674172881735,149.8191,21.34,21.315,20.0]
[1674172882049,149.8191,21.34,21.317,10.0]
[1674172882259,149.8191,21.34,21.318,38.92]
[1674172882447,149.8191,21.34,21.318,48.086]
[1674172882657,20.96,21.338,21.318,9.166]
[1674172882993,55.15,21.338,21.313,27.38124719]
[1674172883207,10.0,21.337,21.313,9.078]
[1674172883726,35.15,21.336,21.313,9.078]
[1674172883936,4.41224,21.335,21.311,10.14]
[1674172884253,4.41224,21.335,21.305,10.0]
[1674172884254,10.0,21.333,21.306,9.699]
[1674172884467,25.37224,21.332,21.306,9.699]
[1674172884680,4.41224,21.331,21.306,9.699]
[1674172884865,4.41224,21.331,21.303,8.749]
[1674172884866,0.96,21.33,21.303,8.749]
[1674172885073,10.0,21.328,21.303,8.749]
[1674172885309,43.33224,21.327,21.3,8.652]
[1674172885521,4.41224,21.326,21.3,8.652]
[1674172885839,74.66315815,21.326,21.303,7.499]
[1674172886033,37.09,21.325,21.303,7.499]
[1674172886361,10.0,21.324,21.303,7.499]
[1674172886565,1.92,21.323,21.3,10.17]
[1674172886755,37.1,21.323,21.303,12.06]
[1674172886970,17.0,21.322,21.3,12.06]
[1674172887186,11.92,21.321,21.3,12.06]
[1674172887603,47.1,21.321,21.303,14.48]
[1674172888043,47.1,21.321,21.3,15.98]
[1674172888571,47.1,21.321,21.301,17.0]
[1674172888875,35.18,21.321,21.303,18.22]
[1674172889066,10.0,21.322,21.304,27.0]
[1674172889277,10.0,21.322,21.305,0.96]
[1674172889506,10.0,21.322,21.306,0.96]
[1674172889822,10.0,21.322,21.307,0.96]
[1674172890036,10.0,21.322,21.304,10.0]
[1674172890225,0.96,21.321,21.305,0.96]
[1674172890685,0.96,21.32,21.305,0.96]
[1674172890895,36.14,21.321,21.305,0.96]
[1674172891109,10.0,21.32,21.305,0.96]
[1674172891427,10.0,21.32,21.305,17.96]
[1674172891643,10.0,21.32,21.306,17.96]
[1674172891831,10.0,21.32,21.307,0.96]
[1674172892042,10.0,21.32,21.308,0.96]
[1674172892245,10.0,21.32,21.307,0.96]
[1674172892585,10.0,21.32,21.302,25.95987968]
[1674172892800,10.0,21.32,21.302,1.85987968]
[1674172893838,1.92,21.319,21.302,1.85987968]
[1674172894045,1.92,21.319,21.303,1.92]
[1674172894252,10.0,21.32,21.303,1.92]
[1674172895288,0.96,21.319,21.303,1.92]
[1674172895500,0.96,21.318,21.303,1.92]
[1674172895728,0.96,21.319,21.302,1.85987968]
[1674172895941,10.96,21.318,21.303,0.96]
[1674172896238,10.96,21.318,21.302,1.85987968]
[1674172896465,0.96,21.317,21.302,1.85987968]
[1674172897074,0.96,21.316,21.302,1.85987968]
[1674172897926,0.96,21.315,21.302,1.85987968]
[1674172898136,0.96,21.314,21.302,1.85987968]
[1674172899386,0.96,21.313,21.28,10.0]
[1674172899603,15.37224,21.312,21.28,10.0]
[1674172899802,164.81224,21.311,21.274,115.3145]
[1674172900017,10.0,21.309,21.275,23.53]
[1674172900227,140.4,21.307,21.269,23.54]
[1674172900452,14.41224,21.306,21.27,10.0]
[1674172900661,140.4,21.304,21.279,98.5923854]
[1674172900877,10.0,21.301,21.279,98.5923854]
[1674172901088,42.37224,21.3,21.279,98.5923854]
[1674172901409,42.37224,21.3,21.2,79.203937]
[1674172901410,98.5923854,21.274,21.2,79.203937]
[1674172901604,22.37224,21.273,21.208,112.0818]
[1674172901803,4.41224,21.271,21.209,7.35256117]
[1674172902016,27.96,21.27,21.21,14.44459]
[1674172902347,24.41224,21.269,21.211,4.44438]
[1674172902538,32.37224,21.268,21.212,10.0]
[1674172902749,25.37224,21.267,21.213,7.71907351]
[1674172902974,10.0,21.265,21.214,10.0]
[1674172903178,25.37224,21.264,21.215,4.90960169]
[1674172903386,22.37224,21.263,21.215,4.90960169]
[1674172903718,35.27,21.264,21.218,10.0]
[1674172903929,10.0,21.29,21.22,7.93547779]
[1674172904240,123.53937679,21.289,21.221,4.44228]
[1674172904444,4.41224,21.288,21.223,6.10734298]
[1674172904768,158.76937679,21.288,21.225,7.68247069]
[1674172904980,150.4,21.286,21.227,7.6183062]
[1674172905292,150.4,21.286,21.24,17.1804419]
[1674172905293,28.16800951,21.285,21.24,17.1804419]
[1674172905476,4.41224,21.284,21.242,6.33752415]
[1674172905687,89.27805495,21.284,21.243,20.0]
[1674172905900,10.0,21.282,21.244,10.96]
[1674172906131,4.41224,21.281,21.245,7.81371602]
[1674172906343,39.66224,21.281,21.246,17.96]
[1674172906526,20.0,21.28,21.246,25.645]
[1674172906747,14.41224,21.279,21.247,10.0]
[1674172906966,4.41224,21.278,21.248,17.96]
[1674172907161,4.41224,21.278,21.248,26.3]
[1674172907495,35.25,21.277,21.249,10.0]
[1674172907690,39.66224,21.277,21.25,17.96]
[1674172907897,39.66224,21.277,21.251,10.0]
[1674172908116,140.4,21.306,21.252,42.63831854]
[1674172908117,35.24,21.283,21.252,42.63831854]
[1674172908318,35.25,21.279,21.252,46.428]
[1674172908534,10.0,21.281,21.253,10.96]
[1674172908751,35.25,21.278,21.254,20.96]
[1674172908952,10.0,21.277,21.254,30.623]
[1674172909163,49.66224,21.277,21.254,10.623]
[1674172909377,14.41224,21.277,21.254,9.663]
[1674172909584,14.41224,21.277,21.245,9.47]
[1674172909585,53.21,21.276,21.245,9.47]
[1674172909805,10.0,21.274,21.244,19.471]
[1674172910010,43.33224,21.273,21.242,9.259]
[1674172910218,43.33224,21.273,21.239,9.261]
[1674172910219,4.41224,21.272,21.239,9.261]
[1674172910432,290.04657715,21.272,21.232,8.928]
[1674172910638,10.0,21.269,21.233,10.0]
[1674172910848,21.41224,21.268,21.233,10.0]
[1674172911074,6.33224,21.267,21.233,10.0]
[1674172911263,51.41224,21.266,21.234,4.944]
[1674172911478,6.33224,21.265,21.234,4.944]
[1674172911689,41.41224,21.264,21.232,10.0]
[1674172911907,15.37224,21.263,21.232,10.0]
[1674172912111,25.37224,21.262,21.232,10.0]
[1674172912323,10.96,21.261,21.232,10.0]
[1674172912531,24.41224,21.26,21.232,10.0]
[1674172912756,10.0,21.258,21.222,10.0]
[1674172913069,5.37224,21.257,21.222,10.0]
[1674172913281,4.41224,21.256,21.222,10.0]
[1674172913483,0.96,21.255,21.222,10.0]
[1674172913802,10.0,21.253,21.222,10.0]
[1674172914014,23.33224,21.252,21.222,10.0]
[1674172914213,57.66224,21.252,21.222,10.0]
[1674172914423,4.41224,21.252,21.223,6.3937305]
[1674172914741,4.41224,21.252,21.242,10.0]
[1674172914951,35.27,21.264,21.243,17.0]
[1674172915156,35.28,21.262,21.243,17.96]
[1674172915368,23.75576951,21.267,21.244,10.0]
[1674172915584,4.41224,21.264,21.244,10.0]
[1674172915905,63.43800951,21.264,21.244,10.0]
[1674172916100,39.68224,21.264,21.245,17.0]
[1674172916304,39.68224,21.264,21.246,10.0]
[1674172916516,35.27,21.268,21.247,18.92]
[1674172916738,35.27,21.268,21.248,10.0]
[1674172917072,119.36164,21.265,21.248,10.0]
[1674172917250,35.27,21.264,21.246,10.0]
[1674172917466,10.0,21.263,21.246,10.0]
[1674172917898,35.28,21.262,21.246,7.5]
[1674172918218,1.92,21.261,21.246,7.5]
[1674172918433,1.92,21.261,21.244,10.0]
[1674172918616,11.92,21.261,21.244,10.0]
[1674172919063,16.33224,21.261,21.244,10.0]
[1674172919673,16.33224,21.261,21.242,10.0]
[1674172919887,10.0,21.259,21.242,10.0]
[1674172920212,43.33224,21.258,21.231,10.0]
[1674172920429,4.41224,21.257,21.231,10.0]
[1674172920625,18.92,21.256,21.231,10.0]
[1674172920838,18.92,21.256,21.226,10.0]
[1674172920839,14.41224,21.255,21.226,10.0]
[1674172921034,10.0,21.253,21.24,4.19e-05]
[1674172921243,43.33224,21.252,21.24,4.19e-05]
[1674172921454,14.41224,21.251,21.24,4.19e-05]
[1674172921664,10.0,21.249,21.24,4.19e-05]
[1674172921890,24.41224,21.248,21.24,4.19e-05]
[1674172922204,10.0,21.246,21.24,4.19e-05]
[1674172922524,6.33224,21.245,21.24,4.19e-05]
[1674172922716,14.41224,21.244,21.24,4.19e-05]
[1674172922920,23.33224,21.243,21.24,4.19e-05]
[1674172923135,14.41224,21.242,21.24,4.19e-05]
[1674172923364,23.33224,21.241,21.24,4.19e-05]
[1674172923566,6.33224,21.241,21.24,4.19e-05]
[1674172923777,51.64224,21.241,21.24,4.19e-05]
[1674172924313,14.41224,21.241,21.24,4.19e-05]
[1674172924523,10.0,21.241,21.24,4.19e-05]
[1674172925254,4.41224,21.241,21.24,4.19e-05]
[1674172925466,10.0,21.249,21.24,4.19e-05]
[1674172925654,35.29,21.252,21.24,4.19e-05]
[1674172925862,20.0,21.251,21.24,4.19e-05]
[1674172926093,144.3949,21.252,21.24,4.19e-05]
[1674172926414,35.28,21.26,21.24,4.19e-05]
[1674172926621,10.0,21.259,21.24,4.19e-05]
[1674172926836,23.75576951,21.269,21.24,4.19e-05]
[1674172927056,154.3549,21.281,21.24,4.19e-05]
[1674172927360,23.75576951,21.279,21.24,4.19e-05]
[1674172927548,10.0,21.277,21.24,4.19e-05]
[1674172927759,4.41224,21.276,21.24,4.19e-05]
[1674172927975,63.41800951,21.276,21.24,4.19e-05]
[1674172928173,10.0,21.274,21.24,4.19e-05]
[1674172928397,4.41224,21.273,21.24,4.19e-05]
[1674172928605,10.0,21.272,21.24,4.19e-05]
[1674172928829,24.41224,21.271,21.24,4.19e-05]
[1674172929142,4.41224,21.27,21.24,4.19e-05]
[1674172929347,10.0,21.268,21.24,4.19e-05]
[1674172929562,10.0,21.266,21.24,4.19e-05]
[1674172929872,43.33224,21.265,21.24,4.19e-05]
[1674172930063,14.41224,21.264,21.24,4.19e-05]
[1674172930270,43.33224,21.263,21.24,4.19e-05]
[1674172930501,14.41224,21.262,21.24,4.19e-05]
[1674172930819,10.0,21.26,21.24,4.19e-05]
[1674172931016,23.33224,21.259,21.24,4.19e-05]
[1674172931226,10.0,21.257,21.24,4.19e-05]
[1674172931436,23.33224,21.256,21.24,4.19e-05]
[1674172931657,10.0,21.255,21.24,4.19e-05]
[1674172931873,1.92,21.254,21.24,4.19e-05]
[1674172932060,36.25,21.254,21.24,4.19e-05]
[1674172932277,35.29,21.254,21.24,4.19e-05]
[1674172932609,10.0,21.253,21.24,4.19e-05]
[1674172933574,35.29,21.254,21.24,4.19e-05]
[1674172933881,35.28,21.259,21.24,4.19e-05]
[1674172934187,10.0,21.268,21.241,7.902]
[1674172934375,35.26,21.271,21.242,18.92]
[1674172934584,10.0,21.27,21.244,10.0]
[1674172934790,10.0,21.27,21.245,38.92]
[1674172935015,35.26,21.271,21.245,53.06]
[1674172935354,35.26,21.275,21.245,58.75211745]
[1674172935738,59.01576951,21.275,21.246,10.0]
[1674172935943,59.01576951,21.275,21.247,38.92]
[1674172936158,59.01576951,21.275,21.247,53.07]
[1674172936618,59.01576951,21.275,21.248,10.0]
[1674172936910,59.01576951,21.275,21.25,7.49248024]
[1674172936911,33.75576951,21.274,21.25,7.49248024]
[1674172937117,35.25,21.279,21.251,17.96]
[1674172937340,45.24,21.284,21.252,6.54033779]
[1674172937544,35.22,21.294,21.253,24.01362109]
[1674172937761,23.75576951,21.29,21.255,5.27368465]
[1674172937946,4.41224,21.289,21.256,18.92]
[1674172938162,39.64224,21.289,21.257,20.0]
[1674172938482,10.0,21.287,21.259,10.0]
[1674172938685,10.0,21.287,21.26,18.92]
[1674172938899,35.24,21.286,21.26,44.66]
[1674172939222,58.99576951,21.286,21.26,44.66]
[1674172939433,58.99576951,21.286,21.261,10.0]
[1674172939645,58.99576951,21.286,21.262,18.92]
[1674172939833,58.99576951,21.286,21.262,43.69]
[1674172940045,4.41224,21.289,21.263,4.67337832]
[1674172940425,35.22,21.294,21.265,10.0]
[1674172940637,23.75576951,21.298,21.266,21.92]
[1674172940951,35.23,21.293,21.268,10.0]
[1674172941138,10.0,21.296,21.269,1.92]
[1674172941345,35.23,21.292,21.269,48.4]
[1674172941553,35.22,21.296,21.27,10.0]
[1674172941774,35.22,21.296,21.271,18.92]
[1674172941980,35.22,21.296,21.271,50.09]
[1674172942195,23.75576951,21.298,21.271,50.09]
[1674172942411,35.22,21.295,21.272,10.0]
[1674172942711,35.22,21.297,21.273,18.92]
[1674172943156,58.97576951,21.297,21.274,10.0]
[1674172943342,35.22,21.297,21.275,18.92]
[1674172943553,35.22,21.297,21.276,10.0]
[1674172943763,23.75576951,21.299,21.277,18.92]
[1674172943974,35.22,21.296,21.277,18.92]
[1674172944198,35.22,21.299,21.278,31.94]
[1674172944516,45.2,21.306,21.279,28.92]
[1674172944732,35.2,21.306,21.279,47.22324719]
[1674172944916,35.2,21.306,21.28,38.25653188]
[1674172945132,35.19,21.312,21.281,18.92]
[1674172945345,10.0,21.314,21.282,10.0]
[1674172945547,35.2,21.311,21.283,18.92]